Cogmind - Beta 13 @@@ ROGUE MODE // 2024.08.03 @ 20:33:06 Player: Clortox Result: Destroyed by Y-45 Defender with Heavy Assault Rifle Performance ------------- Evolutions (1) 500 Regions Visited (3) 600 Robots Destroyed (21) 105 Value Destroyed (331) 331 Prototype IDs (1) 20 Alien Tech Used (0) 0 Bonus (0) 0 TOTAL SCORE: 1556 Bonus ------- None Cogmind --------- Core Integrity 0/400 Matter 270/300 Energy 100/100 System Corruption 0% Temperature Cool (9) Movement Core (350) Ox6 Location -9/Materials Parts ------- > --- POWER (1) -------- (None) > --- PROPULSION (2) --- (None) > --- UTILITY (4) ------ Large Storage Unit Terrain Scan Processor > --- WEAPON (2) ------- (None) > --- INVENTORY (15) --- Medium Matter Pod (0) Targeting Computer Small Laser Assault Rifle Peak State ------------ > --- POWER ------------ Light Ion Engine > --- PROPULSION ------- Wheel Wheel > --- UTILITY ---------- Large Storage Unit Improved Terrain Scanner Light Armor Plating Light Armor Plating > --- WEAPON ----------- Advanced Beam Cannon Assault Rifle > --- INVENTORY -------- Medium Matter Pod Targeting Computer ECM Suite Small Laser Grenade Launcher [Rating: 13] Favorites ----------- Power Light Ion Engine Engine Light Ion Engine Propulsion Wheel Leg Aluminum Leg Wheel Wheel Flight Unit Flight Unit Utility Light Armor Plating Device Improved Terrain Scanner Storage Large Storage Unit Processor Terrain Scan Processor Protection Light Armor Plating Weapon Small Laser Energy Gun Small Laser Energy Cannon Advanced Beam Cannon Ballistic Gun Assault Rifle Launcher Grenade Launcher Special Weapon Mining Laser Build | -11 -10 -10 -9 ------- Run | Yrd Mat Min Mat Slots Evolved 2 | . . . 2 Power . | . . . . Propulsion . | . . . . Utility 2 | . . . 2 Weapon . | . . . . Parts Attached 37 | 8 9 14 6 Power 3 | 2 . 1 . Engine 3 | 2 . 1 . Core . | . . . . Reactor . | . . . . Propulsion 11 | 4 1 6 . Treads . | . . . . Leg 2 | 2 . . . Wheel 7 | 2 1 4 . Hover . | . . . . Flight 2 | . . 2 . Utility 14 | 1 5 4 4 Device 6 | 1 2 2 1 Storage 3 | . 1 2 . Processor 1 | . . . 1 Hackware . | . . . . Protection 4 | . 2 . 2 Artifact . | . . . . Weapon 9 | 1 3 3 2 Energy Gun 3 | 1 . 2 . Energy Cannon 1 | . . . 1 Ballistic Gun 1 | . . 1 . Ballistic Cannon . | . . . . Launcher 3 | . 2 . 1 Special Weapon 1 | . 1 . . Impact Weapon . | . . . . Slashing Weapon . | . . . . Piercing Weapon . | . . . . Special Melee Weapon . | . . . . Unidentified Prototypes 1 | . . . 1 Parts Lost 9 | . 1 . 8 Power 1 | . . . 1 Propulsion 3 | . 1 . 2 Utility 3 | . . . 3 Weapon 2 | . . . 2 Highest Loss Streak 8 | . 1 . 8 To Critical Strikes . | . . . . Average Slot Usage (%) 90 | . 83 99 76 Engine 12 | . 14 14 6 Wheel 24 | . 27 27 15 Device 11 | . 4 14 10 Storage 9 | . 7 9 11 Protection 6 | . 6 3 12 Energy Gun 9 | . 14 10 . Energy Cannon 1 | . . . 7 Ballistic Gun 3 | . . 3 6 Launcher 9 | . 6 13 3 Naked Turns . | . . . . Heaviest Build 36 | 4 12 29 36 Greatest Support 20 | 20 20 20 20 Greatest Overweight (x) 7 | . 1 3 7 Average Overweight (x) . | . . . 1 Largest Inventory Capacity 15 | 5 5 15 15 Average Capacity 8 | 5 5 8 15 Most Carried 10 | 5 5 10 6 Average Carried 4 | 3 4 5 4 Final Capacity 15 | 5 5 15 15 Final Carried 7 | 5 4 7 4 Class Distribution -------------------- 64% | Mutant 35% | Scavenger-Mutant Dominant Class ---------------- Mutant | -10/Materials Scavenger-Mutant | -10/Mines Mutant | -9/Materials Resources | -11 -10 -10 -9 ----------- Run | Yrd Mat Min Mat Matter Collected 622 | 280 47 151 144 Remotely . | . . . . Salvage Created 422 | 62 87 42 231 Parts 41 | 6 9 8 18 Haulers Intercepted 1 | . . . 1 Recyclers Shooed 1 | . . . 1 Parts Field Recycled . | . . . . Retrieved Matter . | . . . . Parts Self-Destructed . | . . . . Prevented . | . . . . Kills | -11 -10 -10 -9 ------- Run | Yrd Mat Min Mat Combat Hostiles Destroyed 12 | 1 2 3 6 Guns 3 | 1 . 1 1 Cannons 2 | . . . 2 AOE 7 | . 2 2 3 Classes Destroyed 7 | 2 2 2 1 Worker 3 | 1 1 1 . Builder 2 | . 1 . 1 Tunneler 1 | . . 1 . Hauler 1 | . . . 1 Watcher 2 | . 1 . 1 Swarmer 6 | . . 3 3 Grunt 6 | 1 2 . 3 Best Kill Streak 6 | 1 5 2 6 Combat Bots Only 3 | 1 2 2 3 Max Kills in Single Turn 4 | 1 2 2 4 Gunslinging . | . . . . Exploded 3 | . 1 2 3 Melee . | . . . . Uniques/NPCs Destroyed . | . . . . Combat | -11 -10 -10 -9 -------- Run | Yrd Mat Min Mat Hostile Shots Fired 170 | 8 27 12 123 Missed 54 | 2 10 2 40 Damage Taken 1330 | 65 159 77 1029 Core 500 | 22 33 32 413 Absorbed by Shields . | . . . . Core Remaining (%) 78 | 91 . 65 . Volleys Fired 61 | 11 11 16 23 Largest 1 | 1 1 1 1 Hottest 100 | 40 100 40 68 Shots Fired 61 | 11 11 16 23 Gun 41 | 11 4 15 11 Cannon 9 | . . . 9 Launcher 9 | . 5 1 3 Special 2 | . 2 . . Kinetic 14 | . . 3 11 Thermal 38 | 11 6 12 9 Explosive 9 | . 5 1 3 Electromagnetic . | . . . . Robot Hit Streak 14 | 7 4 6 14 Robot Miss Streak 3 | 1 . 3 2 Penetration Max . | . . . . Secondary Targets . | . . . . Shots Hit Robots 36 | 8 4 7 17 Core Hits 29 | 3 11 5 10 Critical Kills . | . . . . Critical Parts Destroyed . | . . . . Critical Strikes . | . . . . Melee Attacks . | . . . . Impact . | . . . . Slashing . | . . . . Piercing . | . . . . Sneak Attacks . | . . . . Combat Hostiles . | . . . . Follow-up Attacks . | . . . . Damage Inflicted 1026 | 91 185 198 552 Guns 360 | 91 45 80 144 Cannons 123 | . . . 123 Explosions 540 | . 140 118 282 Melee . | . . . . Ramming 3 | . . . 3 Kinetic 172 | . . 28 144 Thermal 311 | 91 45 52 123 Explosive 540 | . 140 118 282 Electromagnetic . | . . . . Impact . | . . . . Slashing . | . . . . Piercing . | . . . . Highest Corruption . | . . . . Average Corruption . | . . . . Corruption Purged . | . . . . Corruption Blocked . | . . . . Overload Shots . | . . . . Overflow Damage 15 | . . 5 10 Projectiles 2 | . . . 2 Explosions 13 | . . 5 8 Melee . | . . . . Knockbacks . | . . . . Impact . | . . . . Kinetic . | . . . . Secondary . | . . . . Self-Inflicted Damage 27 | . 26 . 1 Shots 1 | . 1 . . Rammed 1 | . . . 1 Targets Rammed 1 | . . . 1 Kicked . | . . . . Crushed . | . . . . Highest Temperature 320 | 24 64 24 320 Average Temperature 114 | 16 24 10 192 Received Heat Transfer 384 | 36 6 . 342 Effects 1 | . . . 1 Energy Bleed 1 | . . . 1 Siege Activations . | . . . . Robots Corrupted . | . . . . Combat Hostiles . | . . . . Parts Fried . | . . . . Impact Corruptions . | . . . . Robots Melted . | . . . . Combat Hostiles . | . . . . Parts Melted . | . . . . Heat Transferred 647 | 200 100 125 222 Parts Sabotaged . | . . . . Parts Stolen . | . . . . Parts Stripped . | . . . . Power Chain Reactions . | . . . . Alert | -11 -10 -10 -9 ------- Run | Yrd Mat Min Mat Peak Influence 157 | 26 95 130 157 Initial 42 | . 16 42 . Average 44 | 9 26 53 77 Maximum Alert Level . | . . . . Low Security (%) 100 | 100 100 100 100 Level 1 . | . . . . Level 2 . | . . . . Level 3 . | . . . . Level 4 . | . . . . Level 5 . | . . . . High Security . | . . . . Max Security . | . . . . Squads Dispatched 1 | . . . 1 Investigation 1 | . . . 1 Extermination . | . . . . Reinforcement . | . . . . Assault . | . . . . Garrison . | . . . . Intercept . | . . . . Searches Triggered . | . . . . Construction Impeded . | . . . . Haulers Reinforced . | . . . . Active Scanning Responses . | . . . . Cargo Convoy Interrupts . | . . . . Stealth | -11 -10 -10 -9 --------- Run | Yrd Mat Min Mat Distress Signals 1 | . . . 1 Communications Jammed . | . . . . Distress Signals . | . . . . Times Spotted 23 | 1 5 2 15 Peak Tracking Total 6 | 1 3 3 6 Tactical Retreats 3 | . 1 . 2 Traps | -11 -10 -10 -9 ------- Run | Yrd Mat Min Mat Traps Triggered 1 | . . . 1 Indirectly . | . . . . Trap Hack Attempts . | . . . . Triggered . | . . . . Disarmed . | . . . . Reprogrammed . | . . . . Reused . | . . . . Traps Extracted . | . . . . Installed . | . . . . Triggered . | . . . . Machines | -11 -10 -10 -9 ---------- Run | Yrd Mat Min Mat Machines Disabled . | . . . . Max in Single Turn . | . . . . Machines Repaired . | . . . . Machines Dismantled . | . . . . Machines Sabotaged . | . . . . Overloaded Fab Kills . | . . . . Hacking | -11 -10 -10 -9 --------- Run | Yrd Mat Min Mat Machines Accessed 2 | . 2 . . Terminals 1 | . 1 . . Fabricators . | . . . . Repair Stations . | . . . . Recycling Units 1 | . 1 . . Scanalyzers . | . . . . Garrison Access . | . . . . Total Hacks 3 | . 3 . . Successful 3 | . 3 . . Failed . | . . . . Catastrophic . | . . . . Database Lockouts . | . . . . Manual . | . . . . Terminals 1 | . 1 . . Fabricators . | . . . . Repair Stations . | . . . . Recycling Units 2 | . 2 . . Scanalyzers . | . . . . Garrison Access . | . . . . Terminal Hacks 1 | . 1 . . Alert Level 1 | . 1 . . Fabricator Hacks . | . . . . Repair Station Hacks . | . . . . Recycling Unit Hacks 2 | . 2 . . Recycle Component 1 | . 1 . . Report Inventory 1 | . 1 . . Scanalyzer . | . . . . Garrison Access Hacks . | . . . . Unauthorized Hacks . | . . . . Terminals . | . . . . Fabricators . | . . . . Repair Stations . | . . . . Recycling Units . | . . . . Scanalyzers . | . . . . Garrison Access . | . . . . Data Cores Recovered . | . . . . Used . | . . . . Hacking Detections 1 | . 1 . . Full Trace Events . | . . . . Feedback Events . | . . . . Feedback Blocked . | . . . . Robot Schematics Acquired . | . . . . Robots Built . | . . . . Authchips . | . . . . Time . | . . . . Total Robot Build Rating . | . . . . Part Schematics Acquired . | . . . . Parts Built . | . . . . Authchips . | . . . . Time . | . . . . Total Part Build Rating . | . . . . Parts Repaired . | . . . . Time . | . . . . Parts Recycled 1 | . 1 . . Recycled Matter . | . . . . Retrieved Matter . | . . . . Retrieved Components . | . . . . Parts Scanalyzed . | . . . . Part Schematics Acquired . | . . . . Parts Damaged . | . . . . Bothacking | -11 -10 -10 -9 ------------ Run | Yrd Mat Min Mat Used RIF Installer . | . . . . Robots Hacked . | . . . . Non-combat . | . . . . Combat . | . . . . Robot Hacks Applied . | . . . . Relay Couplers Released . | . . . . Fabnet Peak Effective % . | . . . . Robots Rewired . | . . . . Allies Hacked . | . . . . Hacks Repelled . | . . . . Allies | -11 -10 -10 -9 -------- Run | Yrd Mat Min Mat Total Allies . | . . . . Largest Group . | . . . . Highest-Rated Group . | . . . . Highest-Rated Ally . | . . . . Total Orders . | . . . . Ally Attacks . | . . . . Total Damage . | . . . . Kills . | . . . . Allies Corrupted . | . . . . Allies Melted . | . . . . Intel | -11 -10 -10 -9 ------- Run | Yrd Mat Min Mat Robot Analysis Total . | . . . . Derelict Logs Recovered . | . . . . Drone Launches . | . . . . Drone Recoveries . | . . . . Exploration | -11 -10 -10 -9 ------------- Run | Yrd Mat Min Mat Turns Passed 1063 | 163 248 473 179 Spaces Moved 925 | 135 248 455 87 Core 37 | 30 . . 7 Treads . | . . . . Legs 46 | 46 . . . Wheels 837 | 59 248 450 80 Hover . | . . . . Flight 5 | . . 5 . Fastest Speed 50 | 50 80 80 95 Average Speed 87 | 86 80 86 119 Slowest Speed 400 | 120 95 277 400 Overloaded Moves . | . . . . Propulsion Burnouts . | . . . . Robots Hopped . | . . . . Cave-ins Triggered . | . . . . Exploration Rate (%) 32 | 7 36 78 8 Regions Visited 3 Branch Regions 1 Pre-discovered Areas . | . . . . Known Exits Taken . | . . . . Unknown Exits Taken 3 | 1 1 1 . Scrap Searched 2 | . . 2 . Spaces Dug 1 | . 1 . . Terrain Destroyed 60 | . 30 8 22 Melee . | . . . . Projectile 1 | . 1 . . AOE 59 | . 29 8 22 Terrain Rammed . | . . . . Walls Destroyed . | . . . . Machines Disabled . | . . . . Actions | -11 -10 -10 -9 --------- Run | Yrd Mat Min Mat Total 1115 | 170 286 519 140 Wait 35 | 3 . 12 20 Move 922 | 134 247 454 87 Hop . | . . . . Pick Up 34 | 11 10 11 2 Fast Attach . | . . . . Attach 25 | 7 9 4 5 Detach 7 | 1 3 3 . Swap 12 | 1 . 10 1 Drop 18 | 2 6 9 1 Fire 61 | 11 11 16 23 Melee . | . . . . Ram 1 | . . . 1 Kick . | . . . . Crush . | . . . . Escape Stasis . | . . . . Rewire . | . . . . Trap . | . . . . Miscellaneous . | . . . . Route ------- -11/Scrapyard -10/Materials (discovered 3 exits: [*Mat] / [*Min x2]) -10/Mines (discovered 2 exits: [*Mat x2]) -9/Materials History --------- Turn | Location | Event 2 | -11/Scrapyard | Met Revision 17 95 | -11/Scrapyard | Discovered new exit (range 8) 164 | -11/Scrapyard | Entered Materials 262 | -10/Materials | Discovered new exit (range 12) 304 | -10/Materials | Discovered new exit (range 4) 337 | -10/Materials | Discovered new exit (range 6) 340 | -10/Materials | Build established: Mutant 412 | -10/Materials | Entered Mines 732 | -10/Mines | Discovered new exit (range 12) 813 | -10/Mines | Discovered new exit (range 7) 882 | -10/Mines | Build established: Scavenger-Mutant 885 | -10/Mines | Entered Materials 885 | -9/Materials | Evolved 2 slots: Utility x2 1050 | -9/Materials | Core integrity fell below 50% 1062 | -9/Materials | Core integrity fell below 20% 1064 | -9/Materials | Destroyed by Y-45 Defender with Heavy Assault Rifle Last Messages --------------- G-34 Mercenary destroyed. Wheel destroyed. K-01 Serf collects debris. Adv. Beam Cannon destroyed. U-05 Engineer builds a Wall. U-05 Engineer lays Concrete. U-05 Engineer builds a Door. K-01 Serf collects debris. U-05 Engineer lays Concrete. K-01 Serf collects debris. U-05 Engineer lays Concrete. K-01 Serf collects debris. U-05 Engineer lays Concrete. U-05 Engineer builds a Wall. K-01 Serf collects debris. U-05 Engineer lays Concrete. K-01 Serf collects debris. K-01 Serf cleans the Purification Channel. U-05 Engineer builds a Wall. [Achievement: First Step to Greatness] Map ----- +----------------------------------------------------+ | | | | | | | | | | | ?????????????????????????????????????????????????? | | ??????????????????????????????????#??????????????? | | ?????????????????????????????????#???????????????? | | ????????????? ?????????#?????????????????????????? | | ???????????????????????#??????#??????????????????? | | ?????????????????#####???????????????????????????? | | ?????????????????# ##??????????????????????????? | | ????????????????## #?????#?????????????????????? | | ?????#????????? ?# #???##?????#????#???????????? | | ?????????????????# #??????#???????#????????????? | | ?????????????????# #??????????????????##???????? | | ?????????????????# #?###??#?#???????? ###?????? | | ???????? ???????## ##?#?????????????# #### | | ??????????????#?# ################ | | ??????????????#?# k ? | | ???????? ??????## = #???? | | ??????????? ????# %! #???????? | | ???????????? ??# ### = [= #???????? | | ??????##???????########## = [%%%= #???????? | | ??????????????#??# #u!Y = [= #???????? | | ???????#????? ???# @ s #### ##= ##???????? | | ??????????????#??# #g ##??? # #???????? | | ?????????#???????######### ## ?? # ##???????? | | ????????#???? ??????????## ##??? #? ????? ??? | | ?????????#?????????###### #???" #? ???????? | | ????????? ?? = #???"" #? ###??????? | | ???????????? *%= Y/ "" #??#????????? | | ???????????? [ # """ #???????????? | | ?????????????########+### # "" #???????????? | | ????????????##?????? ???# ###? """ +???????????? | | ??????????????? ????????# #??? """ #???????????? | | ??????????#?????????????# #????""" ????????????? | | ?????????????????"??????# #???? "? ????????????? | | ??????????????#?????????# #????????????????????? | | ????????????????????????# #????????????????????? | | ????????????????????????# ?????????????????????? | | ????????????????????????# ?????????????????????? | | ????????????????????????# ?????????????????????? | | ????????????????????????# ?????????????????????? | | ????????????????????????# ?????????????????????? | | ????????????????????????? ?????????????????????? | | ?????????????????????????????????????????????????? | | ?????????????????????????????????????????????????? | | ?????????????????????????????????????????????????? | | ?????????????????????????????????????????????????? | +----------------------------------------------------+ Best States ------------- Heat Dissipation 35 Energy Generation 10 Energy Capacity 125 Matter Stores 300 Matter Capacity 400 Sight Range 16 Terrain Scan Range 16 Terrain Scan Density 85 ECM Strength 1 Armor Coverage 300 Utility Shielding 33 Evasion (%) 55 Item Schematics ----------------- None Robot Schematics ------------------ None Fabricated ------------ Nothing Alien Tech Used ----------------- None Achievements -------------- Crack Shot First Step to Greatness Loot Pinata Risk Taker Challenges ------------ None Game ------ Seed MachineBottomlessRifle Manual? 0 Play Time 00:45:27 Cumulative 0.7 hours Start 2024.08.02 @ 21:35:16 End 2024.08.03 @ 20:33:06 Sessions 3 Manual Loads 0 Difficulty Rogue Special Mode None Game No. 1 Rogue 1 Adventurer 0 Explorer 0 Win Type - Total 0 Types 0/0/0/0/0/0/0/0/0 Lore% 0 Gallery% 1 Achievement% 1 Wizard Run 0 Options --------- Layout 1 ASCII 0 Keyboard 0 Movement Arrows Keybinds 0 Fullscreen 1 Font 24/Smallcaps Map View 50x35 Zoom Use 0% Tactical HUD 0 Map Filters NONE Filters NONE Steam 1 RUN: b783ae74-4b42-40f3-ab89-88504f3d56f9